Cogmind - Beta 9.6 @@@ ROGUE MODE // 2020.08.28 @ 23:36:09 Player: Cracklepappy Result: Destroyed by 8R-AWN with 8R-AWN's Boregun Performance ------------- Evolutions (0) 0 Regions Visited (3) 600 Robots Destroyed (29) 145 Value Destroyed (403) 403 Prototype IDs (26) 520 Alien Tech Used (0) 0 Bonus (-638) -638 TOTAL SCORE: 1030 Bonus ------- Aligned with FarCom 300 Friendly Fire -938 Cogmind --------- Core Integrity 0/250 Matter 146/300 Energy 280/280 System Corruption 0% Temperature Cool (12) Movement Treading (180) Ox1 Location -10/Exiles Parts ------- > --- POWER (1) -------- Cooled Ion Engine > --- PROPULSION (2) --- Light Treads Light Treads > --- UTILITY (2) ------ High-capacity Storage Unit Light Armor Plating > --- WEAPON (2) ------- Autogun Autogun > --- INVENTORY (12) --- Ion Engine Light Treads High-capacity Matter Pod (200) Assault Rifle Assault Rifle Assault Rifle Autogun Autogun Peak State ------------ > --- POWER ------------ Cooled Ion Engine > --- PROPULSION ------- Light Treads Light Treads > --- UTILITY ---------- High-capacity Storage Unit Light Armor Plating > --- WEAPON ----------- YOLO Cannon > --- INVENTORY -------- Ion Engine Light Treads Light Treads Light Treads High-capacity Matter Pod Assault Rifle Assault Rifle Autogun Autogun Autogun [Rating: 28] Favorites ----------- Power Cooled Ion Engine Engine Cooled Ion Engine Propulsion Light Treads Treads Light Treads Wheel Wheel Utility Large Storage Unit Storage Large Storage Unit Protection Light Armor Plating Weapon Autogun Energy Cannon YOLO Cannon Ballistic Gun Autogun Launcher Grenade Launcher Special Weapon Mining Laser Build | -11 -10 -10 -10 ------- Run | Scr Mat Min Exi Slots Evolved . | . . . . Power . | . . . . Propulsion . | . . . . Utility . | . . . . Weapon . | . . . . Parts Attached 32 | 8 12 4 8 Power 4 | 1 3 . . Engine 4 | 1 3 . . Core . | . . . . Reactor . | . . . . Propulsion 9 | 2 2 3 2 Treads 5 | . . 3 2 Leg . | . . . . Wheel 4 | 2 2 . . Hover . | . . . . Flight . | . . . . Utility 7 | 2 2 . 3 Device . | . . . . Storage 6 | 2 2 . 2 Processor . | . . . . Hackware . | . . . . Protection 1 | . . . 1 Artifact . | . . . . Weapon 12 | 3 5 1 3 Energy Gun . | . . . . Energy Cannon 1 | . . . 1 Ballistic Gun 8 | 3 2 1 2 Ballistic Cannon . | . . . . Launcher 2 | . 2 . . Special Weapon 1 | . 1 . . Impact Weapon . | . . . . Slashing Weapon . | . . . . Piercing Weapon . | . . . . Special Melee Weapon . | . . . . Unidentified Prototypes 1 | . 1 . . Parts Lost 5 | . 3 . 2 Power . | . . . . Propulsion 4 | . 2 . 2 Utility . | . . . . Weapon 1 | . 1 . . Highest Loss Streak 2 | . 1 . 2 Average Slot Usage (%) 97 | . 96 100 97 Engine 14 | . 14 14 14 Treads 18 | . . 27 28 Wheel 9 | . 27 . . Storage 26 | . 28 28 24 Protection 1 | . . . 3 Energy Cannon 1 | . . . 2 Ballistic Gun 22 | . 19 28 23 Launcher 1 | . 3 . . Special Weapon 1 | . 2 . . Naked Turns . | . . . . Heaviest Build 78 | 15 45 46 78 Greatest Support 40 | 20 20 40 40 Greatest Overweight (x) 2 | . 2 1 1 Average Overweight (x) 1 | . 1 1 1 Largest Inventory Capacity 20 | 8 16 16 20 Average Capacity 15 | 6 13 16 17 Most Carried 20 | 8 16 16 20 Average Carried 14 | 4 12 15 15 Final Capacity 16 | 8 16 16 12 Final Carried 16 | 8 16 16 8 Class Distribution -------------------- 74% | Mutant 25% | Hauler-Mutant Dominant Class ---------------- Mutant | -10/Materials Mutant | -10/Mines Hauler-Mutant | -10/Exiles Resources | -11 -10 -10 -10 ----------- Run | Scr Mat Min Exi Matter Collected 920 | 301 79 115 425 Remotely . | . . . . Salvage Created 499 | 96 259 115 29 Parts 42 | 10 19 13 . Haulers Intercepted . | . . . . Recyclers Shooed 2 | . 2 . . Parts Field Recycled . | . . . . Retrieved Matter . | . . . . Parts Self-Destructed . | . . . . Prevented . | . . . . Kills | -11 -10 -10 -10 ------- Run | Scr Mat Min Exi Combat Hostiles Destroyed 16 | . 11 2 3 Guns 2 | . . 2 . Cannons 2 | . . . 2 AOE 12 | . 11 . 1 Classes Destroyed 9 | 2 5 1 1 Worker 1 | . 1 . . Builder 1 | . 1 . . Tunneler 2 | 2 . . . Recycler 3 | 1 2 . . Watcher 2 | . 2 . . Swarmer 6 | . 6 . . Grunt 5 | . 5 . . Sentry 2 | . . 2 . Assembled 7 | . . . 7 Best Kill Streak 11 | 3 11 2 3 Combat Bots Only 8 | . 8 2 3 Max Kills in Single Turn 4 | 1 3 1 4 Gunslinging . | . . . . Exploded 2 | . 2 . 1 Melee . | . . . . Uniques/NPCs Destroyed . | . . . . Combat | -11 -10 -10 -10 -------- Run | Scr Mat Min Exi Damage Taken 1235 | . 395 301 539 Core 262 | . 96 42 124 Absorbed by Shields . | . . . . Core Remaining (%) 100 | 100 . . . Volleys Fired 51 | 6 19 10 16 Largest 2 | 2 2 2 2 Hottest 100 | 40 100 46 100 Shots Fired 90 | 12 29 20 29 Gun 71 | 12 13 20 26 Cannon 3 | . . . 3 Launcher 12 | . 12 . . Special 4 | . 4 . . Kinetic 71 | 12 13 20 26 Thermal 7 | . 4 . 3 Explosive 12 | . 12 . . Electromagnetic . | . . . . Robot Hit Streak 13 | 5 8 13 8 Robot Miss Streak 3 | 1 2 3 1 Penetration Max . | . . . . Secondary Targets . | . . . . Shots Hit Robots 65 | 9 16 16 24 Core Hits 44 | 4 26 4 10 Critical Hits . | . . . . Critical Kills . | . . . . Critical Parts Destroyed . | . . . . Melee Attacks . | . . . . Impact . | . . . . Slashing . | . . . . Piercing . | . . . . Sneak Attacks . | . . . . Combat Hostiles . | . . . . Follow-up Attacks . | . . . . Damage Inflicted 2632 | 112 1157 268 1095 Guns 768 | 112 110 268 278 Cannons 364 | . . . 364 Explosions 1500 | . 1047 . 453 Melee . | . . . . Ramming . | . . . . Kinetic 768 | 112 110 268 278 Thermal 817 | . . . 817 Explosive 1047 | . 1047 . . Electromagnetic . | . . . . Impact . | . . . . Slashing . | . . . . Piercing . | . . . . Highest Corruption . | . . . . Average Corruption . | . . . . Corruption Purged . | . . . . Overload Shots . | . . . . Overflow Damage 163 | . 18 . 145 Projectiles 94 | . . . 94 Explosions 69 | . 18 . 51 Melee . | . . . . Knockbacks . | . . . . Impact . | . . . . Kinetic . | . . . . Secondary . | . . . . Self-Inflicted Damage 22 | . 22 . . Shots 1 | . 1 . . Rammed . | . . . . Targets Rammed . | . . . . Kicked . | . . . . Crushed . | . . . . Highest Temperature 92 | . 20 22 92 Average Temperature 20 | . 8 11 33 Received Heat Transfer 218 | . 90 108 20 Siege Activations . | . . . . Robots Corrupted . | . . . . Combat Hostiles . | . . . . Parts Fried . | . . . . Impact Corruptions . | . . . . Robots Melted . | . . . . Combat Hostiles . | . . . . Parts Melted . | . . . . Heat Transferred 720 | . . . 720 Parts Sabotaged . | . . . . Parts Stolen . | . . . . Parts Stripped . | . . . . Power Chain Reactions . | . . . . Missiles Intercepted . | . . . . Alert | -11 -10 -10 -10 ------- Run | Scr Mat Min Exi Peak Influence 323 | 15 323 58 . Average Influence 103 | 4 151 32 . Maximum Alert Level 1 | . 1 . . Low Security (%) 74 | 100 59 100 . Level 1 25 | . 40 . . Level 2 . | . . . . Level 3 . | . . . . Level 4 . | . . . . Level 5 . | . . . . High Security . | . . . . Max Security . | . . . . Squads Dispatched 1 | . 1 . . Investigation 1 | . 1 . . Extermination . | . . . . Reinforcement . | . . . . Assault . | . . . . Garrison . | . . . . Intercept . | . . . . Construction Impeded . | . . . . Haulers Reinforced . | . . . . Stealth | -11 -10 -10 -10 --------- Run | Scr Mat Min Exi Distress Signals 1 | . 1 . . Communications Jammed . | . . . . Distress Signals . | . . . . Times Spotted 20 | . 14 2 4 Peak Tracking Total 7 | . 7 2 5 Tactical Retreats . | . . . . Traps | -11 -10 -10 -10 ------- Run | Scr Mat Min Exi Traps Triggered 2 | . 2 . . Indirectly . | . . . . Trap Hack Attempts . | . . . . Triggered . | . . . . Disarmed . | . . . . Reprogrammed . | . . . . Reused . | . . . . Traps Extracted . | . . . . Installed . | . . . . Triggered . | . . . . Machines | -11 -10 -10 -10 ---------- Run | Scr Mat Min Exi Machines Disabled 3 | . . 1 2 Max in Single Turn 1 | . . 1 1 Machines Sabotaged . | . . . . Garrisons Compromised . | . . . . Overloaded Fab Kills . | . . . . Fab Network Shutdowns . | . . . . Hacking | -11 -10 -10 -10 --------- Run | Scr Mat Min Exi Machines Accessed 8 | . 6 . 2 Terminals 6 | . 6 . . Fabricators . | . . . . Repair Stations . | . . . . Recycling Units . | . . . . Scanalyzers . | . . . . Garrison Access . | . . . . Total Hacks 28 | . 19 . 9 Successful 17 | . 8 . 9 Failed 11 | . 11 . . Catastrophic . | . . . . Database Lockouts . | . . . . Manual 12 | . 11 . 1 Terminals 19 | . 19 . . Fabricators . | . . . . Repair Stations . | . . . . Recycling Units . | . . . . Scanalyzers . | . . . . Garrison Access . | . . . . Terminal Hacks 17 | . 8 . 9 Record 8 | . . . 8 Part Schematic 1 | . 1 . . Prototype ID Bank 2 | . 2 . . Branch Access Points 1 | . 1 . . Unreport Threat 1 | . 1 . . Dispatch Records 1 | . 1 . . Zone Layout 2 | . 2 . . EX-Prototype ID Bank 1 | . . . 1 Fabricator Hacks . | . . . . Repair Station Hacks . | . . . . Recycling Unit Hacks . | . . . . Scanalyzer . | . . . . Garrison Access Hacks . | . . . . Unauthorized Hacks . | . . . . Terminals . | . . . . Fabricators . | . . . . Repair Stations . | . . . . Recycling Units . | . . . . Scanalyzers . | . . . . Garrison Access . | . . . . Data Cores Recovered . | . . . . Used . | . . . . Hacking Detections 6 | . 6 . . Full Trace Events . | . . . . Feedback Events . | . . . . Feedback Blocked . | . . . . Robot Schematics Acquired . | . . . . Robots Built . | . . . . Matter . | . . . . Time . | . . . . Total Robot Build Rating . | . . . . Part Schematics Acquired 1 | . 1 . . Parts Built . | . . . . Matter . | . . . . Time . | . . . . Total Part Build Rating . | . . . . Parts Repaired . | . . . . Time . | . . . . Parts Recycled . | . . . . Recycled Matter . | . . . . Retrieved Matter . | . . . . Retrieved Components . | . . . . Parts Scanalyzed . | . . . . Part Schematics Acquired . | . . . . Parts Damaged . | . . . . Bothacking | -11 -10 -10 -10 ------------ Run | Scr Mat Min Exi Used RIF Installer . | . . . . Robots Hacked . | . . . . Non-combat . | . . . . Combat . | . . . . Robot Hacks Applied . | . . . . Relay Couplers Released . | . . . . Robots Rewired . | . . . . Allies Hacked . | . . . . Hacks Repelled . | . . . . Allies | -11 -10 -10 -10 -------- Run | Scr Mat Min Exi Total Allies . | . . . . Largest Group . | . . . . Highest-Rated Group . | . . . . Highest-Rated Ally . | . . . . Total Orders . | . . . . Ally Attacks . | . . . . Total Damage . | . . . . Kills . | . . . . Allies Corrupted . | . . . . Allies Melted . | . . . . Intel | -11 -10 -10 -10 ------- Run | Scr Mat Min Exi Robot Analysis Total . | . . . . Derelict Logs Recovered 1 | . . 1 . Drone Launches . | . . . . Drone Recoveries . | . . . . Exploration | -11 -10 -10 -10 ------------- Run | Scr Mat Min Exi Turns Passed 1595 | 88 530 245 732 Spaces Moved 1027 | 64 476 118 369 Core 1 | 1 . . . Treads 487 | . . 118 369 Legs . | . . . . Wheels 539 | 63 476 . . Hover . | . . . . Flight . | . . . . Fastest Speed 50 | 50 80 180 180 Average Speed 132 | 79 91 180 180 Slowest Speed 180 | 80 100 180 180 Overloaded Moves . | . . . . Propulsion Burnouts . | . . . . Robots Hopped . | . . . . Cave-ins Triggered . | . . . . Exploration Rate (%) 45 | 4 72 40 65 Regions Visited 3 Branch Regions 2 Pre-discovered Areas 1 | . . 1 . Known Exits Taken 1 | . 1 . . Unknown Exits Taken 2 | 1 . 1 . Scrap Searched . | . . . . Spaces Dug 4 | . 4 . . Terrain Destroyed 70 | . 55 . 15 Melee . | . . . . Projectile 4 | . 4 . . AOE 66 | . 51 . 15 Actions | -11 -10 -10 -10 --------- Run | Scr Mat Min Exi Total 1174 | 85 538 134 417 Wait 1 | . 1 . . Move 1024 | 63 475 117 369 Hop . | . . . . Pick Up 35 | 8 19 1 7 Fast Attach 7 | 6 1 . . Attach 10 | 1 3 . 6 Detach 2 | . . . 2 Swap 15 | 1 8 4 2 Drop 29 | . 12 2 15 Fire 51 | 6 19 10 16 Melee . | . . . . Ram . | . . . . Kick . | . . . . Crush . | . . . . Escape Stasis . | . . . . Rewire . | . . . . Trap . | . . . . Miscellaneous . | . . . . Route ------- -11/Scrapyard -10/Materials (discovered 5 exits: [*Mat x3] / *Min x2) -10/Mines -10/Exiles (discovered 1 exit: [*Min]) History --------- Turn | Location | Event 37 | -11/Scrapyard | Discovered new exit (range 12) 89 | -11/Scrapyard | Entered Materials 138 | -10/Materials | Discovered new exit (range 9) 159 | -10/Materials | Discovered new exit (range 10) 250 | -10/Materials | Discovered new exit (range 15) 262 | -10/Materials | Destroyed 8 combat bots 300 | -10/Materials | Build established: Mutant 510 | -10/Materials | Identified exit to Mines 586 | -10/Materials | Discovered new exit (range 16) 619 | -10/Materials | Entered Mines 738 | -10/Mines | Core integrity fell below 50% 855 | -10/Mines | Deemed a non-threat by the Exiles lab entrance 856 | -10/Mines | Discovered new exit (range 5) 864 | -10/Mines | Entered Exiles 909 | -10/Exiles | Met 8R-AWN 942 | -10/Exiles | Met EX-HEX 1118 | -10/Exiles | Met EX-DEC 1229 | -10/Exiles | Discovered new exit (range 10) 1337 | -10/Exiles | Met EX-BIN 1340 | -10/Exiles | Build established: Hauler-Mutant 1361 | -10/Exiles | Aligned with FarCom system 1363 | -10/Exiles | Given EX-Vault access code 1404 | -10/Exiles | Opened EX-Vault 1415 | -10/Exiles | Found YOLO Cannon 1476 | -10/Exiles | Warned to stay clear of 0b10 Research branches 1549 | -10/Exiles | Attacked by the Exiles 1577 | -10/Exiles | Core integrity fell below 20% 1596 | -10/Exiles | Destroyed by 8R-AWN with 8R-AWN's Boregun Last Messages --------------- 01564_ Penetrated by HV Slug. 01564_ HV Slug penetrates Wall. 01567_ Penetrated by HV Slug. 01567_ Critical hit. 01567_ HV Slug penetrates Wall. 01569_ Penetrated by HV Slug. 01569_ HV Slug penetrates Wall. 01569_ Penetrated by HV Slug. 01569_ HV Slug penetrates Wall. 01571_ Penetrated by HV Slug. 01573_ Critical hit. 01573_ Lgt. Treads destroyed. 01573_ Penetrated by HV Slug. 01582_ Critical hit. 01582_ Lgt. Treads destroyed. 01585_ Penetrated by HV Slug. 01585_ Destroyed Prototype Protection. 01587_ Penetrated by HV Slug. 01589_ HV Slug penetrates Wall. 01591_ Penetrated by HV Slug. Map ----- +----------------------------------------------------+ | """#??????????????????????????????????? | | """#??????????????????????????????????? | | """#??????????????????????????????????? | | """#??????????????????????????????????? | | """##?????????????????????????????????? | | """""?????????????????????????????????? | | """##?????????????????????????????????? | | "X" """""?????????????????????????????????? | | """ # ?????????????????????????????????? | | """""""""#??????????????????????????????????? | | ###########??????????????????????????????????? | | #????????????????????????????????????????????? | | #????????????????????????????????????????????? | | ##???????????????????????????????????????????? | | ##???####;####??????????????????????????????? | | #####"""" """"##???????????????????????????? | | " """ """"##??????????????????????????? | | "" " #??????????????????????????? | | " """#??????????????????????????? | | a"#???????????#####??????????? | | " "##?????????##" #??????????? | | "###???????#" #??????????? | | "" ""#??????##" ##?????????? | | #""" "#????### ###???????? | | #####""" ##???# ######### | | ????##""" @##?## #""""## | | ?????#"""" ### | | ????##"" g ## * | | ?####"""" #### | | ##""" ""#?#"""""#### | | """ #"""##?#######??#### | | ######??????????????## | | ##????????????????????? | | " ##?????????????????????? | | "" "" ""#??????????????????????? | | ##""" " " ""# %"##??????????????????????? | | ######""" """#; ##???????????????????????? | | #????###""""##; ;#????????????????????????? | | ####???######??? #?????????????????????????? | | "!#???????????????##??????????????????????????? | | #???????????????????????????????????????????? | | "#???????????????????????????????????????????? | | ""!"#???????????????????????????????????????????? | | ######???????????????????????????????????????????? | | ?????????????????????????????????????????????????? | | ?????????????????????????????????????????????????? | | ?????????????????????????????????????????????????? | | ?????????????????????????????????????????????????? | | ?????????????????????????????????????????????????? | | ?????????????????????????????????????????????????? | +----------------------------------------------------+ Best States ------------- Heat Dissipation 25 Energy Generation 14 Energy Capacity 280 Matter Stores 300 Matter Capacity 300 Sight Range 16 Terrain Scan Density 10 Armor Coverage 150 Evasion (%) 44 Recoil Reduction 2 Item Schematics ----------------- Hcp. Storage Unit | -10/Materials | Hacked Robot Schematics ------------------ None Fabricated ------------ Nothing Alien Tech Used ----------------- None Achievements -------------- None Challenges ------------ None Game ------ Seed ReinforcedIonicElectrolaser Manual? 0 Play Time 00:16:48 Cumulative 149.5 hours Start 2020.08.28 @ 23:21:17 End 2020.08.28 @ 23:36:09 Sessions 1 Manual Loads 0 Difficulty Rogue Special Mode None Game No. 182 Rogue 182 Adventurer 0 Explorer 0 Win Type - Total 2 Types 2/0/0/0/0/0/0 Lore% 58 Gallery% 69 Achievement% 51 Wizard Run 0 Options --------- ASCII 0 Keyboard 0 Movement Numpad Keybinds 0 Fullscreen 2 Font 24/Smallcaps Map View 76x50 Tactical HUD 1 Map Filters NONE Filters NONE Steam 1 RUN: 29c4477a-9dda-43df-abee-0f1d642a10f3